bitfinex/quotes_ETHUSD_20240820
["timestamp","ask_amount","ask_price","bid_price","bid_amount"]
[1724172809123,15.72778372,2581.0,2580.9,0.55]
[1724172809604,7.74952,2580.8,2580.7,12.41847599]
[1724172809810,3.87491,2580.7,2580.6,2.4193]
[1724172810227,10.85805647,2580.7,2580.6,2.4193]
[1724172810718,3.87551,2580.3,2580.2,12.41847599]
[1724172810955,6.87551,2580.3,2580.2,12.41847599]
[1724172811109,6.98353784,2580.3,2580.2,14.67877599]
[1724172811314,10.85904784,2580.3,2580.2,14.67877599]
[1724172812199,10.85904784,2580.3,2580.2,2.2603]
[1724172812398,6.98353784,2580.3,2580.2,2.8103]
[1724172813195,7.38939325,2580.3,2580.2,2.8103]
[1724172817614,3.51388325,2580.3,2580.2,2.8103]
[1724172817820,3.51388325,2580.3,2580.2,3.48340637]
[1724172819470,0.51388325,2580.3,2580.2,3.48340637]
[1724172819778,3.51388325,2580.3,2580.2,3.48340637]
[1724172819980,3.51388325,2580.3,2580.2,2.8103]
[1724172820137,7.38939325,2580.3,2580.2,2.8103]
[1724172820570,11.26490325,2580.3,2580.2,2.2603]
[1724172820768,3.87637,2579.8,2579.6,2.4554]
[1724172820967,3.87637,2579.8,2579.7,14.87387599]
[1724172821481,7.75274,2579.8,2579.7,14.87387599]
[1724172821678,10.75274,2579.8,2579.7,14.87387599]
[1724172823092,6.87637,2579.8,2579.7,14.87387599]
[1724172823543,6.87637,2579.8,2579.7,15.42387599]
[1724172824281,6.87637,2579.8,2579.7,3.0054]
[1724172826381,3.0,2579.8,2579.7,3.0054]
[1724172826777,3.0,2579.9,2579.7,3.0054]
[1724172826962,3.0,2579.9,2579.8,2.8297]
[1724172827164,2.95,2579.9,2579.8,2.8297]
[1724172827379,2.95,2579.9,2579.8,3.11267]
[1724172827582,9.15142541,2580.3,2579.9,2.2797]
[1724172827781,9.15142541,2580.3,2580.0,0.55]
[1724172827948,3.87582,2580.1,2580.0,0.55]
[1724172828794,7.75164,2580.1,2580.0,0.55]
[1724172829164,10.75164,2580.1,2580.0,0.55]
[1724172829699,10.75164,2580.1,2579.5,2.2643]
[1724172829700,3.87669,2579.6,2579.5,2.2643]
[1724172829912,7.75338,2579.6,2579.5,2.2643]
[1724172830210,10.75338,2579.6,2579.5,2.2643]
[1724172830508,11.15924746,2579.6,2579.5,2.2643]
[1724172832707,3.40586746,2579.6,2579.5,2.2643]
[1724172832870,0.40586746,2579.6,2579.5,2.8143]
[1724172833070,0.51214531,2579.6,2579.5,2.8143]
[1724172834384,4.38871531,2579.6,2579.5,2.8143]
[1724172834562,7.38871531,2579.6,2579.5,2.8143]
[1724172836065,11.26528531,2579.6,2579.5,2.8143]
[1724172836872,15.67403045,2579.6,2579.5,2.2643]
[1724172837478,11.26528531,2579.6,2579.5,2.2643]
[1724172837978,7.38871531,2579.6,2579.5,2.2643]
[1724172838381,7.38871531,2579.6,2579.5,2.8143]
[1724172838909,11.26528531,2579.6,2579.5,2.8143]
[1724172839596,7.38871531,2579.6,2579.5,2.8143]
[1724172842106,7.38871531,2579.6,2579.5,15.23277599]
[1724172842412,7.38871531,2579.6,2579.5,2.8143]
[1724172842772,11.26528531,2579.6,2579.5,2.8143]
[1724172845131,11.26528531,2579.6,2579.5,2.2643]
[1724172845132,15.14185531,2579.6,2579.5,2.2643]
[1724172845395,15.67403045,2579.6,2579.5,2.2643]
[1724172845837,3.87735,2579.1,2578.9,2.4678]
[1724172846041,3.87726,2579.2,2579.0,0.55]
[1724172846201,7.87,2579.1,2578.6,2.4678]
[1724172846396,3.87778,2578.8,2578.6,2.4678]
[1724172846595,3.87792,2578.7,2578.6,2.4678]
[1724172847103,6.87792,2578.7,2578.6,2.4678]
[1724172847498,3.0,2578.7,2578.6,2.4678]
[1724172847938,10.75584,2578.7,2578.6,2.4678]
[1724172848246,10.86130274,2578.7,2578.6,2.4678]
[1724172848398,6.98338274,2578.7,2578.6,2.4678]
[1724172848608,10.86130274,2578.7,2578.6,2.4678]
[1724172849914,6.98338274,2578.7,2578.6,2.4678]
[1724172850716,6.98338274,2578.7,2578.6,3.0178]
[1724172853538,3.10546274,2578.7,2578.6,3.0178]
[1724172854861,0.10546274,2578.7,2578.6,3.0178]
[1724172855246,6.87763,2578.9,2578.6,3.0178]
[1724172855450,3.983315,2578.7,2578.6,3.0178]
[1724172855748,3.10552381,2578.7,2578.6,3.0178]
[1724172856157,0.10552381,2578.7,2578.6,3.0178]
[1724172856476,3.0,2578.8,2578.6,3.0178]
[1724172856631,0.10552381,2578.7,2578.6,3.0178]
[1724172856835,0.10552381,2578.7,2578.6,3.31958]
[1724172857058,3.0,2578.9,2578.7,2.4055]
[1724172857259,0.40589459,2579.2,2578.8,2.9555]
[1724172857665,0.40589459,2579.2,2578.9,2.7944]
[1724172857876,0.40589459,2579.2,2579.1,2.4055]
[1724172858189,0.40589459,2579.2,2579.1,2.9555]
[1724172858870,0.40589459,2579.2,2579.1,3.28994]
[1724172859987,0.40589459,2579.2,2579.1,2.9555]
[1724172861856,0.40589459,2579.2,2579.1,15.37397599]
[1724172862338,3.87587,2580.1,2579.1,13.35737599]
[1724172862543,3.87666,2579.6,2579.2,12.96847599]
[1724172862883,3.87666,2579.6,2579.3,2.4151]
[1724172862884,4.28237807,2579.6,2579.3,2.4151]
[1724172863083,3.98279599,2579.5,2579.4,0.55]
[1724172863284,3.98279599,2579.5,2579.4,2.9651]
[1724172863655,6.98279599,2579.5,2579.4,2.9651]
[1724172863860,3.10600599,2579.5,2579.4,2.9651]
[1724172864261,10.85944599,2579.5,2579.4,2.9651]
[1724172865560,14.73616599,2579.5,2579.4,2.4151]
[1724172865805,3.87762,2578.9,2578.8,2.3085]
[1724172866166,3.98335864,2578.9,2578.8,2.3085]
[1724172866378,6.98335864,2578.9,2578.8,2.3085]
[1724172867484,10.86097864,2578.9,2578.8,2.3085]
[1724172868629,6.98335864,2578.9,2578.8,2.3085]
[1724172868816,6.98335864,2578.9,2578.8,2.8585]
[1724172869019,3.10573864,2578.9,2578.8,2.8585]
[1724172869333,6.98335864,2578.9,2578.8,2.8585]
[1724172869542,3.10573864,2578.9,2578.8,2.8585]
[1724172870406,3.10573864,2578.9,2578.8,0.83585]
[1724172870743,3.10573864,2578.9,2578.8,2.8868]
[1724172870921,0.10573864,2578.9,2578.8,2.8868]
[1724172871941,0.10573864,2578.9,2578.8,15.30527599]
[1724172874549,0.10573864,2578.9,2578.8,15.69417599]
[1724172875103,3.0,2579.2,2578.9,2.7349]
[1724172875300,3.0,2579.2,2579.1,2.346]
[1724172875542,3.0,2579.2,2579.1,2.896]
[1724172875777,3.87681,2579.5,2579.2,2.3666]
[1724172876052,3.87681,2579.5,2579.3,12.96847599]
[1724172876345,3.87681,2579.5,2579.4,2.3666]
[1724172876521,3.87681,2579.5,2579.4,2.9166]
[1724172877124,0.40571807,2579.6,2579.5,2.2716]
[1724172877301,0.40571807,2579.6,2579.5,2.8216]
[1724172877510,4.28228807,2579.6,2579.5,2.8216]
[1724172878060,8.26486693,2579.6,2579.5,2.8216]
[1724172878554,11.26486693,2579.6,2579.5,2.8216]
[1724172879052,3.51172693,2579.6,2579.5,2.8216]
[1724172879362,0.51172693,2579.6,2579.5,4.3844976]
[1724172879709,0.51172693,2579.6,2579.5,4.46202306]
[1724172879936,0.51172693,2579.6,2579.5,4.3844976]
[1724172880845,0.51172693,2579.6,2579.5,16.80297359]
[1724172882451,0.10600886,2579.6,2579.5,16.80297359]
[1724172882960,3.40569003,2579.9,2579.6,2.3371]
[1724172883115,3.40569003,2579.9,2579.8,2.3371]
[1724172883310,3.40569003,2579.9,2579.8,14.75557599]
[1724172883512,3.40569003,2579.9,2579.8,15.30557599]
[1724172883740,0.40569003,2579.9,2579.8,15.30557599]
[1724172884817,7.28180003,2579.9,2579.8,15.30557599]
[1724172885558,11.15791003,2579.9,2579.8,15.30557599]
[1724172886951,7.28180003,2579.9,2579.8,15.30557599]
[1724172887268,3.40569003,2579.9,2579.8,15.30557599]
[1724172887468,0.40569003,2579.9,2579.8,15.30557599]
[1724172887652,3.40569003,2579.9,2579.8,15.30557599]
[1724172888036,3.40569003,2579.9,2579.8,16.83613359]
[1724172888366,3.40569003,2579.9,2579.8,17.22503359]
[1724172888367,0.40569003,2579.9,2579.8,17.22503359]
[1724172888540,0.40569003,2579.9,2579.8,15.69447599]
[1724172889068,4.28180003,2579.9,2579.8,15.30557599]
[1724172889251,7.28180003,2579.9,2579.8,15.30557599]
[1724172890024,3.40569003,2579.9,2579.8,15.30557599]
[1724172890230,3.40569003,2579.9,2579.8,16.44635592]
[1724172890434,0.40569003,2579.9,2579.8,16.44635592]
[1724172893182,0.51180403,2579.9,2579.8,16.83525592]
[1724172897274,0.106114,2579.9,2579.8,16.83525592]
[1724172897570,3.4057171,2580.3,2579.9,2.3092]
[1724172897786,3.4057171,2580.3,2580.0,2.30824578]
[1724172897959,3.4057171,2580.3,2580.1,2.3706]
[1724172898143,3.4057171,2580.3,2580.2,12.96847599]
[1724172898334,0.4057171,2580.3,2580.2,15.42857599]
[1724172898526,0.4057171,2580.3,2580.2,17.13950715]
[1724172900444,0.4057171,2580.3,2580.2,17.52840715]
[1724172900979,3.87455,2581.0,2580.3,2.8003]
[1724172901177,0.405678,2580.9,2580.4,12.96847599]
[1724172901376,0.405678,2580.9,2580.5,2.4114]
[1724172901377,4.280298,2580.9,2580.5,2.4114]
[1724172901608,3.87485,2580.8,2580.6,0.55]
[1724172901763,3.87491,2580.7,2580.6,0.55]
[1724172901965,7.74982,2580.7,2580.6,0.55]
[1724172902503,10.74982,2580.7,2580.6,0.55]
[1724172903156,11.28199514,2580.7,2580.6,0.55]
[1724172903400,11.28199514,2580.7,2580.5,2.4114]
[1724172903401,7.75012,2580.6,2580.5,2.4114]
[1724172903557,10.75012,2580.6,2580.5,2.9614]
[1724172903957,6.87506,2580.6,2580.5,2.9614]
[1724172904152,3.0,2580.6,2580.5,2.9614]
[1724172904564,3.0,2580.8,2580.5,2.9614]
[1724172904763,3.0,2580.8,2580.7,2.3208]
[1724172905203,3.0,2580.8,2580.7,2.8708]
[1724172905400,6.87476,2580.8,2580.7,2.8708]
[1724172906013,10.74952,2580.8,2580.7,2.8708]
[1724172906375,10.74952,2580.8,2580.7,0.55]
[1724172906728,7.74982,2580.7,2580.6,0.55]
[1724172907026,7.75012,2580.6,2580.5,2.4999]
[1724172907221,7.75012,2580.6,2580.5,3.0499]
[1724172907222,10.75012,2580.6,2580.5,3.0499]
[1724172907376,6.87506,2580.6,2580.5,3.0499]
[1724172908096,6.98192783,2580.6,2580.5,3.0499]
[1724172909587,10.85698783,2580.6,2580.5,3.0499]
[1724172909797,6.98192783,2580.6,2580.5,3.0499]
[1724172910881,3.10686783,2580.6,2580.5,3.0499]
[1724172911484,0.10686783,2580.6,2580.5,3.0499]
[1724172911714,3.10686783,2580.6,2580.5,3.0499]
[1724172912097,10.85698783,2580.6,2580.5,3.0499]
[1724172912295,6.98192783,2580.6,2580.5,3.0499]
[1724172912509,3.10686783,2580.6,2580.5,3.0499]
[1724172912730,0.10686783,2580.6,2580.5,4.5967376]
[1724172913087,3.405678,2580.9,2580.6,2.4854]
[1724172913282,7.280298,2580.9,2580.7,0.55]
[1724172913487,7.280298,2580.9,2580.8,12.41847599]
[1724172913805,7.280298,2580.9,2580.8,12.96847599]
[1724172914011,7.280298,2580.9,2580.8,15.45387599]
[1724172917142,11.155018,2580.9,2580.8,15.45387599]
[1724172918442,3.405678,2580.9,2580.8,15.45387599]
[1724172918652,3.405678,2580.9,2580.8,16.99926359]
[1724172919010,0.405678,2580.9,2580.8,16.99926359]
[1724172919551,0.405678,2580.9,2580.8,17.38816359]
[1724172921869,3.87341,2581.8,2580.9,2.3807]
[1724172922007,0.40566851,2581.5,2581.3,2.7696]
[1724172922202,0.40566851,2581.5,2581.4,2.45816707]
[1724172922457,0.40566851,2581.5,2581.4,2.9307]
[1724172922749,0.50915243,2581.5,2581.4,2.9307]
[1724172923662,0.40566851,2581.5,2581.4,2.9307]
[1724172923958,0.5091425,2581.5,2581.4,3.22377]
[1724172925277,0.5091425,2581.5,2581.4,15.64224599]
[1724172926502,0.5091425,2581.5,2581.4,15.34917599]
[1724172927072,4.3828525,2581.5,2581.4,15.34917599]
[1724172927302,7.3828525,2581.5,2581.4,15.34917599]
[1724172929960,3.5091425,2581.5,2581.4,15.34917599]
[1724172930689,7.3828525,2581.5,2581.4,15.34917599]
[1724172931005,3.5091425,2581.5,2581.4,15.34917599]
[1724172933016,3.5091425,2581.5,2581.4,16.88409359]
[1724172933175,0.5091425,2581.5,2581.4,16.88409359]
[1724172935373,0.5091425,2581.5,2581.4,15.34917599]
[1724172936617,3.5091425,2581.5,2581.4,15.34917599]
[1724172937189,11.2565625,2581.5,2581.4,15.34917599]
[1724172937450,11.2565625,2581.5,2581.4,14.79917599]
[1724172938904,11.2565625,2581.5,2581.4,15.34917599]
[1724172939267,7.3828525,2581.5,2581.4,15.34917599]
[1724172939397,11.2565625,2581.5,2581.4,15.34917599]
[1724172939596,7.3828525,2581.5,2581.4,15.34917599]
[1724172940253,3.5091425,2581.5,2581.4,15.34917599]
[1724172940417,3.5091425,2581.5,2581.4,16.88409359]
[1724172941718,3.5091425,2581.5,2581.4,15.34917599]
[1724172942057,11.2565625,2581.5,2581.4,15.34917599]
[1724172943442,15.1302725,2581.5,2581.4,12.41847599]
[1724172944046,11.2565625,2581.5,2581.4,12.41847599]
[1724172944417,11.2565625,2581.5,2581.4,14.78997599]
[1724172944418,7.3828525,2581.5,2581.4,14.78997599]
[1724172944973,7.3828525,2581.5,2581.4,15.33997599]
[1724172951530,11.2565625,2581.5,2581.4,15.33997599]
[1724172959071,7.3828525,2581.5,2581.4,15.33997599]
[1724172960263,11.2565625,2581.5,2581.4,15.33997599]
[1724172960564,7.3828525,2581.5,2581.4,15.33997599]
[1724172964899,3.5091425,2581.5,2581.4,15.33997599]
[1724172965902,0.5091425,2581.5,2581.4,15.33997599]
[1724172966065,0.5091425,2581.5,2581.4,16.87397359]
[1724172966768,0.5091425,2581.5,2581.4,17.26287359]
[1724172967153,0.40566851,2581.5,2581.4,17.26287359]
[1724172967563,0.50585328,2581.5,2581.4,15.33997599]
[1724172967781,4.27937851,2581.5,2581.4,15.33997599]
[1724172967980,8.15308851,2581.5,2581.4,15.33997599]
[1724172968216,8.78560327,2581.5,2581.4,14.78997599]
[1724172968499,15.65931327,2581.5,2581.4,14.78997599]
[1724172968701,15.65931327,2581.5,2581.4,12.41847599]
[1724172969001,7.74802,2581.3,2581.2,2.2992]
[1724172969181,3.87491,2580.7,2580.6,2.2992]
[1724172969511,3.87491,2580.7,2580.6,14.71767599]
[1724172969512,3.97472942,2580.7,2580.6,14.71767599]
[1724172969679,6.97472942,2580.7,2580.6,14.71767599]
[1724172969859,3.09981942,2580.7,2580.6,14.71767599]
[1724172970060,3.09981942,2580.7,2580.6,16.18944359]
[1724172970290,0.09981942,2580.7,2580.6,16.18944359]
[1724172970506,0.40571342,2580.8,2580.7,2.438]
[1724172970667,0.09948482,2580.8,2580.7,2.438]
[1724172970847,0.40572041,2581.1,2580.7,2.988]
[1724172971057,0.09993103,2581.0,2580.9,2.3853]
[1724172971483,0.09993103,2581.0,2580.9,2.9353]
[1724172972902,0.09993103,2581.0,2580.9,15.74267599]
[1724172974410,0.09993103,2581.0,2580.9,14.80377599]
[1724172975897,0.09993103,2581.0,2580.9,15.35377599]
[1724172976100,0.09993103,2581.0,2580.9,16.92804359]
[1724172976307,0.09993103,2581.0,2580.9,17.31694359]
[1724172980198,3.0,2581.7,2581.2,0.3889]
[1724172980459,0.50238944,2581.6,2581.4,2.8511]
[1724172980676,0.50238944,2581.6,2581.5,4.59191122]
[1724172981129,0.50238944,2581.6,2581.5,16.91045618]
[1724172981616,0.40565591,2581.6,2581.5,16.91045618]
[1724172981816,0.50240247,2581.6,2581.5,16.91045618]
[1724172982036,0.40565591,2581.6,2581.5,16.91045618]
[1724172982216,0.40565591,2581.6,2581.5,17.29935618]
[1724172983204,0.50251946,2581.6,2581.5,17.29935618]
[1724172983618,0.50251946,2581.6,2581.5,15.16964496]
[1724172983792,0.50251946,2581.6,2581.5,14.78074496]
[1724172984436,0.50251946,2581.6,2581.5,15.16964496]
[1724172984958,0.50251946,2581.6,2581.5,15.71964496]
[1724172997661,0.09686355,2581.6,2581.5,15.71964496]
[1724172997963,0.40556194,2582.2,2581.6,2.6754]
[1724172998113,0.40556194,2582.2,2581.7,2.8365]
[1724172998318,0.09724422,2582.1,2581.7,2.8365]
[1724173000861,0.40556194,2582.2,2581.9,2.3978]
[1724173001024,0.40556194,2582.2,2582.1,2.3978]
[1724173001223,0.40556194,2582.2,2582.1,3.9244345]
[1724173001526,0.40556194,2582.2,2582.1,4.4744345]
[1724173001735,0.40556194,2582.2,2582.1,2.9478]
[1724173001964,0.40556194,2582.2,2582.1,14.71634496]
[1724173001965,4.27822194,2582.2,2582.1,14.71634496]
[1724173002470,7.27822194,2582.2,2582.1,14.71634496]
[1724173002620,3.40556194,2582.2,2582.1,14.71634496]
[1724173003020,7.27822194,2582.2,2582.1,14.71634496]
[1724173003441,3.40556194,2582.2,2582.1,14.71634496]
[1724173003991,7.27822194,2582.2,2582.1,15.26634496]
[1724173007198,11.15088194,2582.2,2582.1,12.86854496]
[1724173010483,7.27822194,2582.2,2582.1,12.86854496]
[1724173011563,7.27322194,2582.2,2582.1,15.25514496]
[1724173011762,11.14588194,2582.2,2582.1,15.25514496]
[1724173012980,7.27322194,2582.2,2582.1,15.25514496]
[1724173013186,7.37068613,2582.2,2582.1,15.25514496]
[1724173015199,3.49802613,2582.2,2582.1,15.25514496]
[1724173015496,0.49802613,2582.2,2582.1,15.25514496]
[1724173015645,3.49802613,2582.2,2582.1,15.25514496]
[1724173015841,3.49802613,2582.2,2582.1,16.78065946]
[1724173016992,3.49802613,2582.2,2582.1,15.25514496]
[1724173017359,7.37068613,2582.2,2582.1,15.25514496]
[1724173017565,3.49802613,2582.2,2582.1,15.25514496]
[1724173017994,0.49802613,2582.2,2582.1,15.25514496]
[1724173018194,3.49802613,2582.2,2582.1,15.25514496]
[1724173018399,3.49802613,2582.2,2582.1,16.78065946]
[1724173019555,3.49802613,2582.2,2582.1,15.25514496]
[1724173019901,7.37068613,2582.2,2582.1,15.25514496]
[1724173020952,11.24334613,2582.2,2582.1,15.25514496]
[1724173021455,7.37068613,2582.2,2582.1,15.25514496]
[1724173022485,11.24334613,2582.2,2582.1,15.25514496]
[1724173024489,7.37068613,2582.2,2582.1,15.25514496]
[1724173024685,3.49802613,2582.2,2582.1,15.25514496]
[1724173026429,0.49802613,2582.2,2582.1,15.25514496]
[1724173033396,0.09746419,2582.2,2582.1,15.25514496]
[1724173033852,3.0,2582.6,2582.2,2.4662]
[1724173034180,6.87208,2582.6,2582.4,2.4662]
[1724173034382,6.87208,2582.6,2582.5,0.55]
[1724173034604,3.0,2582.6,2582.5,15.33474496]
[1724173034741,3.87175,2582.9,2582.5,12.86854496]
[1724173034942,3.87128,2583.2,2582.6,2.6676]
[1724173035198,3.87123,2583.2,2582.8,2.2787]
[1724173035373,3.87096,2583.4,2583.0,2.2787]
[1724173035683,4.87,2583.7,2583.2,2.2787]
[1724173035684,3.87101,2583.3,2583.2,2.2787]
[1724173035838,3.87101,2583.3,2583.2,15.14724496]
[1724173036985,6.87101,2583.3,2583.2,15.14724496]
[1724173041807,10.74202,2583.3,2583.2,14.59724496]
[1724173041960,10.74202,2583.3,2583.2,12.31854496]
[1724173042469,10.74202,2583.3,2582.7,12.31854496]
[1724173042470,7.74352,2582.8,2582.7,12.31854496]
[1724173042662,12.61352,2582.8,2582.7,12.31854496]
[1724173043066,15.61352,2582.8,2582.7,12.31854496]
[1724173043571,15.70492977,2582.8,2582.7,12.31854496]
[1724173043774,10.83492977,2582.8,2582.7,12.31854496]
[1724173044931,10.83492977,2582.8,2582.7,12.86854496]
[1724173046046,3.09140977,2582.8,2582.7,12.86854496]
[1724173046248,3.09140977,2582.8,2582.7,15.35294496]
[1724173046805,0.09140977,2582.8,2582.7,15.35294496]
[1724173047008,3.96316977,2582.8,2582.7,15.35294496]
[1724173047232,6.96316977,2582.8,2582.7,15.35294496]
[1724173048205,10.83492977,2582.8,2582.7,12.31854496]
[1724173048558,15.70492977,2582.8,2582.7,12.31854496]
[1724173049812,7.74502,2582.3,2582.2,2.4832]
[1724173050153,7.74502,2582.3,2582.2,14.80174496]
[1724173050351,10.74193738,2582.3,2582.2,14.80174496]
[1724173050649,10.83320468,2582.3,2582.2,14.80174496]
[1724173050813,7.74592,2582.0,2581.9,2.4832]
[1724173051146,7.83699872,2582.0,2581.9,2.4832]
[1724173051448,10.83699872,2582.0,2581.9,2.4832]
[1724173051607,3.09107872,2582.0,2581.9,2.4832]
[1724173052004,6.96403872,2582.0,2581.9,2.4832]
[1724173052245,6.96403872,2582.0,2581.9,3.0332]
[1724173054203,3.09107872,2582.0,2581.9,3.0332]
[1724173054401,3.09107872,2582.0,2581.9,3.33652]
[1724173055107,0.09107872,2582.0,2581.9,3.33652]
[1724173055851,3.0,2582.3,2582.0,2.3589]
[1724173056048,3.0,2582.3,2582.1,0.55]
[1724173056217,3.8718,2582.8,2582.2,7.80485496]
[1724173056399,3.87247,2582.4,2582.3,0.55]
[1724173056831,7.74494,2582.4,2582.3,0.55]
[1724173057014,3.87147,2583.0,2582.4,2.3589]
[1724173057015,3.87152,2583.0,2582.4,2.3589]
[1724173057218,3.87125,2583.2,2582.7,0.3886]
[1724173057554,4.87,2583.6,2582.8,2.9089]
[1724173057846,7.74242,2583.2,2582.8,2.9089]
[1724173058050,3.87133,2583.1,2582.8,2.9089]
[1724173058252,3.87161,2582.9,2582.8,2.9089]
[1724173058660,3.95960022,2582.9,2582.8,2.9089]
[1724173060834,6.95960022,2582.9,2582.8,2.9089]
[1724173063617,10.83121022,2582.9,2582.8,2.9089]
[1724173063847,3.87221,2582.5,2582.4,2.3715]
[1724173064050,7.74442,2582.5,2582.4,2.3715]
[1724173064259,10.83231881,2582.5,2582.4,2.3715]
[1724173064691,6.96010881,2582.5,2582.4,2.3715]
[1724173065016,3.08789881,2582.5,2582.4,2.3715]
[1724173065262,3.08789881,2582.5,2582.4,3.7032455]
[1724173065468,0.08789881,2582.5,2582.4,3.7032455]
[1724173065648,3.08789881,2582.5,2582.4,3.7032455]
[1724173065853,3.08789881,2582.5,2582.4,9.14920046]
[1724173066467,0.08789881,2582.5,2582.4,9.14920046]
[1724173066765,3.08789881,2582.5,2582.4,9.14920046]
[1724173067085,0.08769332,2582.5,2582.4,9.14920046]
[1724173067422,3.95990332,2582.5,2582.4,8.36745496]
[1724173067645,3.08769332,2582.5,2582.4,8.36745496]
[1724173069630,6.95990332,2582.5,2582.4,8.36745496]
[1724173070065,10.83211332,2582.5,2582.4,8.36745496]
[1724173070248,3.08769332,2582.5,2582.4,8.36745496]
[1724173070635,0.08769332,2582.5,2582.4,8.36745496]
[1724173074108,3.95990332,2582.5,2582.4,8.36745496]
[1724173074286,10.83211332,2582.5,2582.4,8.36745496]
[1724173075813,3.08769332,2582.5,2582.4,8.36745496]
[1724173075962,0.08769332,2582.5,2582.4,8.36745496]
[1724173076157,3.08769332,2582.5,2582.4,8.36745496]
[1724173079604,0.08769332,2582.5,2582.4,8.36745496]
[1724173079810,4.87,2583.3,2582.4,8.36745496]
[1724173079811,3.87147,2583.0,2582.4,6.38455496]
[1724173080014,0.08792771,2582.9,2582.7,2.4748]
[1724173080512,0.08792771,2582.9,2582.8,2.9301]
[1724173080809,0.08792771,2582.9,2582.8,8.76465496]
[1724173081025,3.87118,2583.2,2582.8,7.26102046]
[1724173081302,0.08801915,2583.1,2582.9,2.457]
[1724173081508,3.95932915,2583.1,2583.0,0.55]
[1724173082513,3.95932915,2583.1,2583.0,2.9183]
[1724173083264,10.83063915,2583.1,2583.0,2.9183]
[1724173083998,6.95932915,2583.1,2583.0,2.9183]
[1724173086384,3.87176,2582.8,2582.7,2.3499]
[1724173086624,7.83167742,2582.8,2582.7,2.3499]
[1724173086817,10.83167742,2582.8,2582.7,2.3499]
[1724173089133,10.83167742,2582.8,2582.7,2.8999]
[1724173091706,3.87259,2582.3,2581.7,0.3886]
[1724173091907,3.87236,2582.4,2582.0,2.6904]
[1724173092151,0.08769689,2582.2,2582.1,2.9201]
[1724173092457,3.87213,2582.6,2582.2,2.3701]
[1724173092612,3.87213,2582.6,2582.3,0.33087]
[1724173092949,3.0,2582.5,2582.4,8.36605496]
[1724173094615,6.87221,2582.5,2582.4,8.36605496]
[1724173095238,3.0,2582.5,2582.4,8.36605496]
[1724173095517,3.87221,2582.5,2582.4,8.36605496]
[1724173095814,6.87221,2582.5,2582.4,8.36605496]
[1724173096677,6.87221,2582.5,2582.4,7.81605496]
[1724173096678,10.74442,2582.5,2582.4,7.81605496]
[1724173097239,14.61663,2582.5,2582.4,7.81605496]
[1724173097680,10.74442,2582.5,2582.4,7.81605496]
[1724173097882,10.74442,2582.5,2582.4,2.3701]
[1724173098524,14.61663,2582.5,2582.4,2.3701]
[1724173099923,10.74442,2582.5,2582.4,2.3701]
[1724173101137,3.0,2582.5,2582.4,2.60711]
[1724173101344,3.0,2582.6,2582.4,3.15711]
[1724173101490,3.0,2582.6,2582.5,2.9518]
[1724173101818,6.87206,2582.6,2582.5,2.9518]
[1724173102233,10.74412,2582.6,2582.5,2.9518]
[1724173103193,10.83179389,2582.6,2582.5,2.9518]
[1724173105641,3.08767389,2582.6,2582.5,2.9518]
[1724173105795,0.08767389,2582.6,2582.5,3.24698]
[1724173105995,3.08767389,2582.6,2582.5,3.24698]
[1724173107343,3.08767389,2582.6,2582.5,2.9518]
[1724173107550,6.95973389,2582.6,2582.5,2.9518]
[1724173108336,10.83179389,2582.6,2582.5,2.9518]
[1724173109740,10.83179389,2582.6,2582.5,8.39775496]
[1724173110101,6.95973389,2582.6,2582.5,8.39775496]
[1724173110441,6.95973389,2582.6,2582.5,9.23753046]
[1724173110644,3.08767389,2582.6,2582.5,9.23753046]
[1724173110795,0.08767389,2582.6,2582.5,9.23753046]
[1724173111401,0.08767389,2582.6,2582.5,9.2361537]
[1724173112341,0.08767389,2582.6,2582.5,8.3963782]
[1724173114030,7.83179389,2582.6,2582.5,8.3963782]
[1724173114350,10.83179389,2582.6,2582.5,8.3963782]
[1724173114701,10.83179389,2582.6,2582.5,7.84775496]
[1724173117901,6.95973389,2582.6,2582.5,8.39775496]
[1724173119845,3.08561865,2582.6,2582.5,8.39775496]
[1724173120152,3.08561865,2582.6,2582.5,9.23753046]
[1724173120757,0.08561865,2582.6,2582.5,9.62613046]
[1724173121103,3.87139,2583.1,2582.6,2.3504]
[1724173121346,3.87139,2583.1,2582.8,2.3504]
[1724173121347,3.87147,2583.0,2582.8,2.3504]
[1724173121657,3.87161,2582.9,2582.8,2.3504]
[1724173121849,3.87161,2582.9,2582.8,2.9004]
[1724173122156,6.87161,2582.9,2582.8,2.9004]
[1724173123253,3.0,2582.9,2582.8,2.9004]
[1724173124761,6.87161,2582.9,2582.8,2.9004]
[1724173127650,6.95949442,2582.9,2582.8,5.99595496]
[1724173127822,6.95949442,2582.9,2582.8,8.36455496]
[1724173130212,10.83110442,2582.9,2582.8,7.81455496]
[1724173130441,14.70271442,2582.9,2582.8,7.81455496]
[1724173130958,3.87238,2582.4,2582.1,5.44595496]
[1724173131262,3.87266,2582.2,2582.1,7.81455496]
[1724173131490,0.08752572,2582.2,2582.1,7.81455496]
[1724173131841,3.87253,2582.3,2582.1,5.44595496]
[1724173132180,3.87253,2582.3,2582.2,2.3686]
[1724173132393,6.87253,2582.3,2582.2,2.3686]
[1724173132742,3.0,2582.3,2582.2,2.3686]
[1724173132984,3.0,2582.3,2582.2,2.9186]
[1724173133209,3.08758424,2582.3,2582.2,2.9186]
[1724173133361,6.96009424,2582.3,2582.2,2.9186]
[1724173133883,3.08758424,2582.3,2582.2,2.9186]
[1724173135880,6.96009424,2582.3,2582.2,2.9186]
[1724173136449,6.96009424,2582.3,2582.2,8.36455496]
[1724173137788,10.83260424,2582.3,2582.2,8.36455496]
[1724173138586,6.96009424,2582.3,2582.2,2.9186]
[1724173140047,10.83260424,2582.3,2582.2,2.9186]
[1724173140295,6.96009424,2582.3,2582.2,2.9186]
[1724173141200,3.08758424,2582.3,2582.2,2.9186]
[1724173141687,3.08758424,2582.3,2582.2,3.21046]
[1724173141872,3.08758424,2582.3,2582.2,3.29166]
[1724173142077,3.08758424,2582.3,2582.2,2.9998]
[1724173143151,0.08758424,2582.3,2582.2,2.9998]
[1724173143592,3.0,2582.5,2582.2,2.9998]
[1724173143756,0.08766024,2582.3,2582.2,2.9998]
[1724173144395,3.0,2582.5,2582.2,2.9998]
[1724173144605,0.08766024,2582.3,2582.2,3.29978]